Cogmind - Beta 11.1 @@@ ROGUE MODE // 2022.08.10 @ 13:42:46 Player: lumberblack Result: Destroyed by G-47 Trooper with Particle Gun Performance ------------- Evolutions (1) 500 Regions Visited (3) 600 Robots Destroyed (29) 145 Value Destroyed (442) 442 Prototype IDs (6) 120 Alien Tech Used (0) 0 Bonus (-1284) -1284 TOTAL SCORE: 523 Bonus ------- Follower Combat Kills 83 Friendly Fire -1367 Cogmind --------- Core Integrity 0/400 Matter 300/300 Energy 100/100 System Corruption 32% Temperature Cool (15) Movement Core (50) Location -9/Materials Parts ------- > --- POWER (1) -------- (None) > --- PROPULSION (3) --- (None) > --- UTILITY (3) ------ (None) > --- WEAPON (2) ------- (None) > --- INVENTORY (5) ---- Large Storage Unit Grenade Launcher Heavy Explosive Trap Heavy Explosive Trap Heavy Explosive Trap Peak State ------------ > --- POWER ------------ (None) > --- PROPULSION ------- Light Treads Light Treads Light Treads > --- UTILITY ---------- Advanced Visual Processing Unit Improved Sensor Array > --- WEAPON ----------- Small Laser Light Assault Rifle > --- INVENTORY -------- Large Storage Unit Grenade Launcher Heavy Explosive Trap Heavy Explosive Trap Heavy Explosive Trap [Rating: 11] Favorites ----------- Power Ion Engine Engine Ion Engine Propulsion Light Treads Treads Light Treads Leg Aluminum Leg Utility Seismic Detector Device Seismic Detector Storage Small Storage Unit Processor Advanced Visual Processing Unit Weapon Small Laser Energy Gun Small Laser Ballistic Gun Light Assault Rifle Launcher Grenade Launcher Special Weapon Mining Laser Build | -11 -10 -10 -9 ------- Run | Scr Mat Min Mat Slots Evolved 2 | . . . 2 Power . | . . . . Propulsion 1 | . . . 1 Utility 1 | . . . 1 Weapon . | . . . . Parts Attached 27 | 3 11 6 7 Power . | . . . . Engine . | . . . . Core . | . . . . Reactor . | . . . . Propulsion 6 | 2 . 1 3 Treads 6 | 2 . 1 3 Leg . | . . . . Wheel . | . . . . Hover . | . . . . Flight . | . . . . Utility 3 | 1 . . 2 Device 2 | 1 . . 1 Storage . | . . . . Processor 1 | . . . 1 Hackware . | . . . . Protection . | . . . . Artifact . | . . . . Weapon 18 | . 11 5 2 Energy Gun 1 | . 1 . . Energy Cannon . | . . . . Ballistic Gun 8 | . 4 3 1 Ballistic Cannon . | . . . . Launcher 7 | . 4 2 1 Special Weapon 2 | . 2 . . Impact Weapon . | . . . . Slashing Weapon . | . . . . Piercing Weapon . | . . . . Special Melee Weapon . | . . . . Unidentified Prototypes . | . . . . Parts Lost 7 | . . . 7 Power . | . . . . Propulsion 3 | . . . 3 Utility 2 | . . . 2 Weapon 2 | . . . 2 Highest Loss Streak 7 | . . . 7 To Critical Strikes . | . . . . Average Slot Usage (%) 72 | . 71 71 74 Treads 29 | . 28 28 31 Device 12 | . 14 14 10 Processor 4 | . . . 10 Energy Gun 12 | . 13 14 10 Ballistic Gun 11 | . 10 13 10 Naked Turns 7 | . . . 7 Heaviest Build 5 | 3 5 5 3 Greatest Support 40 | 3 3 40 3 Greatest Overweight (x) 1 | . 1 1 . Average Overweight (x) . | . . . . Largest Inventory Capacity 8 | 8 5 5 5 Average Capacity 5 | 5 5 5 5 Most Carried 6 | 6 5 5 5 Average Carried 4 | 1 4 4 5 Final Capacity 5 | 5 5 5 5 Final Carried 5 | 2 5 5 5 Class Distribution -------------------- 100% | Mutant Dominant Class ---------------- Mutant | -10/Materials Mutant | -10/Mines Mutant | -9/Materials Resources | -11 -10 -10 -9 ----------- Run | Scr Mat Min Mat Matter Collected 605 | 234 86 201 84 Remotely . | . . . . Salvage Created 695 | 30 129 322 214 Parts 50 | 7 14 14 15 Haulers Intercepted 4 | . 1 . 3 Recyclers Shooed 1 | . 1 . . Parts Field Recycled . | . . . . Retrieved Matter . | . . . . Parts Self-Destructed . | . . . . Prevented . | . . . . Kills | -11 -10 -10 -9 ------- Run | Scr Mat Min Mat Combat Hostiles Destroyed 17 | . 6 10 1 Guns 2 | . . 1 1 AOE 15 | . 6 9 . Classes Destroyed 9 | 1 2 4 2 Worker 1 | . . 1 . Tunneler 2 | 2 . . . Hauler 4 | . 1 . 3 Recycler 1 | . . 1 . Mechanic 1 | . . 1 . Watcher 1 | . . . 1 Swarmer 12 | . 6 6 . Grunt 4 | . . 4 . Sentry 1 | . . . 1 Thug 1 | . . 1 . Best Kill Streak 5 | 1 4 5 1 Combat Bots Only 4 | . 3 4 1 Max Kills in Single Turn 3 | 1 3 3 1 Gunslinging . | . . . . Exploded 3 | . 3 3 . Melee . | . . . . Uniques/NPCs Destroyed 1 | . . 1 . YI-UF0 (-10/Mines) Combat | -11 -10 -10 -9 -------- Run | Scr Mat Min Mat Damage Taken 1176 | . 17 225 934 Core 473 | . . 61 412 Absorbed by Shields . | . . . . Core Remaining (%) 87 | 100 . 75 . Volleys Fired 80 | 4 10 29 37 Largest 2 | 2 2 2 2 Hottest 100 | 60 100 60 60 Shots Fired 139 | 8 11 49 71 Gun 120 | 8 2 40 70 Cannon . | . . . . Launcher 14 | . 4 9 1 Special 5 | . 5 . . Kinetic 61 | 4 1 20 36 Thermal 64 | 4 6 20 34 Explosive 14 | . 4 9 1 Electromagnetic . | . . . . Robot Hit Streak 12 | 6 8 12 5 Robot Miss Streak 4 | 1 . 2 4 Penetration Max . | . . . . Secondary Targets 1 | . . 1 . Max Gunslinging Chain 1 | . . 1 . Shots Hit Robots 80 | 6 2 33 39 Core Hits 53 | 3 10 28 12 Critical Kills . | . . . . Critical Parts Destroyed 1 | . . . 1 Critical Strikes 1 | . . . 1 Destroy 1 | . . . 1 Melee Attacks . | . . . . Impact . | . . . . Slashing . | . . . . Piercing . | . . . . Sneak Attacks . | . . . . Combat Hostiles . | . . . . Follow-up Attacks . | . . . . Damage Inflicted 2264 | 58 275 1285 646 Guns 731 | 58 21 270 382 Cannons . | . . . . Explosions 1364 | . 254 1002 108 Melee . | . . . . Ramming 169 | . . 13 156 Kinetic 342 | 26 10 127 179 Thermal 497 | 32 11 143 311 Explosive 1146 | . 144 1002 . Electromagnetic 110 | . 110 . . Impact . | . . . . Slashing . | . . . . Piercing . | . . . . Highest Corruption 32 | . . . 32 Average Corruption 19 | . . . 19 Corruption Purged . | . . . . Corruption Blocked . | . . . . Effects 1 | . . . 1 Data Loss (major) 1 | . . . 1 Overload Shots . | . . . . Overflow Damage 71 | . . 3 68 Projectiles . | . . . . Explosions 71 | . . 3 68 Melee . | . . . . Knockbacks . | . . . . Impact . | . . . . Kinetic . | . . . . Secondary . | . . . . Self-Inflicted Damage 287 | . . 91 196 Shots 5 | . . 4 1 Rammed 8 | . 1 7 . Targets Rammed 9 | . 1 8 . Kicked . | . . . . Crushed 1 | . . 1 . Highest Temperature 20 | 20 10 20 8 Average Temperature 5 | 10 7 8 3 Received Heat Transfer 309 | . . 54 255 Siege Activations . | . . . . Robots Corrupted . | . . . . Combat Hostiles . | . . . . Parts Fried . | . . . . Impact Corruptions . | . . . . Robots Melted . | . . . . Combat Hostiles . | . . . . Parts Melted 1 | . . . 1 Heat Transferred 925 | 75 25 325 500 Parts Sabotaged . | . . . . Parts Stolen . | . . . . Parts Stripped . | . . . . Power Chain Reactions . | . . . . Missiles Intercepted . | . . . . Alert | -11 -10 -10 -9 ------- Run | Scr Mat Min Mat Peak Influence 412 | 10 412 397 325 Initial 160 | . 6 160 96 Average 181 | 5 225 272 98 Maximum Alert Level 2 | . 2 1 1 Low Security (%) 57 | 100 50 18 92 Level 1 42 | . 47 81 7 Level 2 . | . 1 . . Level 3 . | . . . . Level 4 . | . . . . Level 5 . | . . . . High Security . | . . . . Max Security . | . . . . Squads Dispatched 6 | . 2 1 3 Investigation 3 | . 2 . 1 Extermination . | . . . . Reinforcement 2 | . . . 2 Assault 1 | . . 1 . Garrison . | . . . . Intercept . | . . . . Searches Triggered . | . . . . Construction Impeded . | . . . . Haulers Reinforced . | . . . . Active Scanning Responses . | . . . . Cargo Convoy Interrupts . | . . . . Stealth | -11 -10 -10 -9 --------- Run | Scr Mat Min Mat Distress Signals 2 | . 1 . 1 Communications Jammed . | . . . . Distress Signals . | . . . . Times Spotted 50 | . 10 12 28 Peak Tracking Total 12 | . 4 4 12 Tactical Retreats 5 | . 1 . 4 Traps | -11 -10 -10 -9 ------- Run | Scr Mat Min Mat Traps Triggered . | . . . . Indirectly . | . . . . Trap Hack Attempts . | . . . . Triggered . | . . . . Disarmed . | . . . . Reprogrammed . | . . . . Reused . | . . . . Traps Extracted . | . . . . Installed . | . . . . Triggered . | . . . . Most Traps Carried 3 | . . 3 3 Machines | -11 -10 -10 -9 ---------- Run | Scr Mat Min Mat Machines Disabled 7 | . 2 2 3 Max in Single Turn 3 | . 1 2 3 Machines Sabotaged . | . . . . Garrisons Compromised . | . . . . Overloaded Fab Kills . | . . . . Hacking | -11 -10 -10 -9 --------- Run | Scr Mat Min Mat Machines Accessed 11 | . 6 . 5 Terminals 7 | . 4 . 3 Fabricators . | . . . . Repair Stations . | . . . . Recycling Units 4 | . 2 . 2 Scanalyzers . | . . . . Garrison Access . | . . . . Total Hacks 36 | . 22 . 14 Successful 21 | . 16 . 5 Failed 14 | . 5 . 9 Catastrophic 2 | . . . 2 Database Lockouts 1 | . 1 . . Manual 23 | . 16 . 7 Terminals 30 | . 19 . 11 Fabricators . | . . . . Repair Stations . | . . . . Recycling Units 6 | . 3 . 3 Scanalyzers . | . . . . Garrison Access . | . . . . Terminal Hacks 13 | . 9 . 4 Robot Analysis 3 | . 3 . . Prototype ID Bank 3 | . 2 . 1 Terminal Index 1 | . . . 1 Recycling Unit Index 1 | . 1 . . Unreport Threat 2 | . . . 2 Locate Traps 2 | . 2 . . Zone Layout 1 | . 1 . . Fabricator Hacks . | . . . . Repair Station Hacks . | . . . . Recycling Unit Hacks . | . . . . Scanalyzer . | . . . . Garrison Access Hacks . | . . . . Unauthorized Hacks 8 | . 7 . 1 Terminals 4 | . 4 . . Track 2 | . 2 . . Disrupt 1 | . 1 . . Operators 1 | . 1 . . Fabricators . | . . . . Repair Stations . | . . . . Recycling Units 4 | . 3 . 1 Recyclers 1 | . 1 . . Tunnel 3 | . 2 . 1 Scanalyzers . | . . . . Garrison Access . | . . . . Data Cores Recovered . | . . . . Used . | . . . . Hacking Detections 9 | . 5 . 4 Full Trace Events 2 | . . . 2 Feedback Events . | . . . . Feedback Blocked . | . . . . Robot Schematics Acquired . | . . . . Robots Built . | . . . . Authchips . | . . . . Time . | . . . . Total Robot Build Rating . | . . . . Part Schematics Acquired . | . . . . Parts Built . | . . . . Authchips . | . . . . Time . | . . . . Total Part Build Rating . | . . . . Parts Repaired . | . . . . Time . | . . . . Parts Recycled . | . . . . Recycled Matter . | . . . . Retrieved Matter . | . . . . Retrieved Components . | . . . . Parts Scanalyzed . | . . . . Part Schematics Acquired . | . . . . Parts Damaged . | . . . . Bothacking | -11 -10 -10 -9 ------------ Run | Scr Mat Min Mat Used RIF Installer . | . . . . Robots Hacked . | . . . . Non-combat . | . . . . Combat . | . . . . Robot Hacks Applied . | . . . . Relay Couplers Released . | . . . . Fabnet Peak Effective % . | . . . . Robots Rewired . | . . . . Allies Hacked . | . . . . Hacks Repelled . | . . . . Allies | -11 -10 -10 -9 -------- Run | Scr Mat Min Mat Total Allies 4 | . . 4 . Largest Group 3 | . . 3 3 Highest-Rated Group 40 | . . 40 40 Highest-Rated Ally 31 | . . 31 16 Total Orders . | . . . . Ally Attacks 21 | . . 3 18 Total Damage 242 | . . 43 199 Kills 3 | . . . 3 Allies Corrupted . | . . . . Allies Melted . | . . . . Intel | -11 -10 -10 -9 ------- Run | Scr Mat Min Mat Robot Analysis Total 3 | . 3 . . Derelict Logs Recovered 1 | . . 1 . Drone Launches . | . . . . Drone Recoveries . | . . . . Exploration | -11 -10 -10 -9 ------------- Run | Scr Mat Min Mat Turns Passed 2154 | 75 319 840 920 Spaces Moved 1625 | 25 305 847 448 Core 1617 | 25 305 839 448 Treads 8 | . . 8 . Legs . | . . . . Wheels . | . . . . Hover . | . . . . Flight . | . . . . Fastest Speed 50 | 50 50 50 50 Average Speed 50 | 50 50 51 50 Slowest Speed 160 | 50 100 160 50 Overloaded Moves . | . . . . Propulsion Burnouts . | . . . . Robots Hopped . | . . . . Cave-ins Triggered . | . . . . Exploration Rate (%) 53 | 3 71 96 44 Regions Visited 3 Branch Regions 1 Pre-discovered Areas 3 | . 2 . 1 Known Exits Taken . | . . . . Unknown Exits Taken 3 | 1 1 1 . Scrap Searched 2 | . . 2 . Spaces Dug 11 | . 3 . 8 Terrain Destroyed 141 | . 15 75 51 Melee . | . . . . Projectile 5 | . 5 . . AOE 136 | . 10 75 51 Terrain Rammed 26 | . . . 26 Walls Destroyed . | . . . . Machines Disabled . | . . . . Actions | -11 -10 -10 -9 --------- Run | Scr Mat Min Mat Total 2808 | 82 444 1203 1079 Wait 1011 | 43 111 299 558 Move 1622 | 24 304 846 448 Hop . | . . . . Pick Up 13 | 1 5 7 . Fast Attach 4 | 1 . . 3 Attach 2 | 2 . . . Detach . | . . . . Swap 21 | . 11 6 4 Drop 20 | 7 2 8 3 Fire 80 | 4 10 29 37 Melee . | . . . . Ram 26 | . . . 26 Kick . | . . . . Crush 9 | . 1 8 . Escape Stasis . | . . . . Rewire . | . . . . Trap . | . . . . Miscellaneous . | . . . . Route ------- -11/Scrapyard -10/Materials (discovered 3 exits: *Mat x2 / [*Min]) -10/Mines (discovered 2 exits: *Mat x2) -9/Materials (discovered 2 exits: [*Mat] / [*Min]) History --------- Turn | Location | Event 10 | -11/Scrapyard | Discovered new exit (range 3) 76 | -11/Scrapyard | Entered Materials 135 | -10/Materials | Central database locked down 168 | -10/Materials | Discovered new exit (range 3) 281 | -10/Materials | Discovered new exit (range 5) 305 | -10/Materials | Build established: Mutant 331 | -10/Materials | Discovered new exit (range 14) 395 | -10/Materials | Entered Mines 403 | -10/Mines | Discovered new exit (range 11) 458 | -10/Mines | YI-UF0 nonchalantly dropped a Grenade Launcher on the ground 521 | -10/Mines | Destroyed YI-UF0 560 | -10/Mines | Found a hidden stash of uninstalled traps 627 | -10/Mines | Met a Derelict testing a Signal Generator 646 | -10/Mines | Discovered new exit (range 15) 1007 | -10/Mines | Assisted by bots powering up and referring to "LRC-V3" 1235 | -10/Mines | Entered Materials 1235 | -9/Materials | Accompanied by 3 allies 1235 | -9/Materials | Evolved 2 slots: Propulsion x1, Utility x1 2045 | -9/Materials | Discovered new exit (range 13) 2065 | -9/Materials | Discovered new exit (range 10) 2136 | -9/Materials | System corruption reached 10% 2145 | -9/Materials | Core integrity fell below 50% 2152 | -9/Materials | Core integrity fell below 20% 2152 | -9/Materials | System corruption reached 30% 2155 | -9/Materials | Destroyed by G-47 Trooper with Particle Gun Last Messages --------------- 02145_ Broken Lgt. Treads destroyed. 02145_ W-16 Scout sends out distress signal. 02145_ Slammed into Machine. 02145_ Destabilizing: Core damaged (-16). 02146_ Slammed into Machine. 02147_ Destabilizing: System corrupted (+1). 02148_ Broken Lgt. Treads destroyed. 02148_ Slammed into Machine. 02148_ Destabilizing: System corrupted (+1). 02149_ Slammed into Machine. 02149_ Destabilizing: System corrupted (+1). 02150_ The unstable cave ceiling collapses. 02150_ Slammed into Machine. 02150_ Destabilizing: Core damaged (-20). 02151_ Slammed into Machine. 02151_ Destabilizing: System corrupted (+1). 02152_ Slammed into Machine. 02152_ Destabilizing: System corrupted (+2). 02153_ Slammed into Machine. 02154_ Destabilizing: Core damaged (-8). Map ----- +----------------------------------------------------+ | ??????# ????????????????#[# #?????????# | | ?????## ????????????????#%# ]=% #?????????# | | ?????# ################[+ ]= #????????# | | ?????# ^ =% %%= [# ]= #?????????# | | ?????+ ##+################## | | ?????# % ! %% + | | ?????? ############+############+###### #+ | | ??????? ??????????? ????# #???# | | ???????????????????# """ ??# #???# | | ???????????????????# """ #?# #???# ##### | | ???????????????????# """ #?# #???# ###### | | ???????????????????# "" #?# #???# ## | | ???????????????????# """ """#?# """ #???# ## """ | | ???????????????????# """ R"#?# """"" #???# ## """ | | ???????????????????# """ """#?# """"" #???# ## """ | | ???????????????????# ??? #?# """"" #???# ## | | ????????????????????????####??# """ #???# ## | | ?????????????????????########## ##### ## | | ?????????????????##### #######+## ## ! | | ?????????????????? k "" ##+### | | ?????????????????? < T | | ?????????????????? | | ????????????????????##" "##+####### ! | | ?????????????????????#" |"| "# ???????## ## | | ????????????????????##""""""?#?????????# #? | | ????????????????????# # @####?????????# #? | | ????????????????????# #?????????# #? | | ????????????????????# ##?????????# | | ????????????????????# !g #??????????# #### | | ????????????????????## !g! #??????????# #### | | ??????????????""?????# !Yg #??????????# ## | | ???????????? """ ??# ug #??????????# ## " | | ??????????? """ ##g#############??# ## | | ??????????? """ #??# ## | | ??????????? """ #### # " | | ??????????# + " | | ??????????# #################### # " | | ??????????# """ #??????????????????# # | | ??????????# """ #??????????????????# ### | | ??????????# """ #?????????????????# ## | | ????????????? """ #?????????????????# | | ??????????????""" ?????????????????# | | ?????????????? ??????????????? ## | | ????????????? ????????????????#######? | | ????????????#############+???????????????????????? | | ?????????????????????????????????????????????????? | | ?????????????????????????????????????????????????? | | ?????????????????????????????????????????????????? | | ?????????????????????????????????????????????????? | | ?????????????????????????????????????????????????? | +----------------------------------------------------+ Best States ------------- Heat Dissipation 28 Energy Generation 5 Energy Capacity 100 Matter Stores 300 Matter Capacity 300 Sight Range 20 Robot Scan Range 15 Terrain Scan Density 10 Evasion (%) 50 Recoil Reduction 3 Item Schematics ----------------- None Robot Schematics ------------------ None Fabricated ------------ Nothing Alien Tech Used ----------------- None Achievements -------------- None Challenges ------------ None Game ------ Seed ForceAerolevSource Manual? 0 Play Time 00:25:11 Cumulative 392.0 hours Start 2022.08.10 @ 12:31:51 End 2022.08.10 @ 13:42:46 Sessions 1 Manual Loads 0 Difficulty Rogue Special Mode None Game No. 379 Rogue 379 Adventurer 0 Explorer 0 Win Type - Total 8 Types 5/1/2/0/0/0/0/0/0 Lore% 57 Gallery% 77 Achievement% 65 Wizard Run 0 Options --------- ASCII 0 Keyboard 0 Movement Numpad Keybinds 0 Fullscreen 2 Font 18/TerminusBold Map View 76x50 Tactical HUD 1 Map Filters NONE Filters NONE Steam 1 RUN: 65f083f4-7632-4493-b32f-b4271b4a7398